bitfinex-derivatives/quotes_ETHF0:USTF0_20260316
["timestamp","ask_amount","ask_price","bid_price","bid_amount"]
[1773668391346,0.21765,2296.9,2294.9,3.77596934]
[1773668391347,5.00842129,2296.6,2294.9,3.77596934]
[1773668392048,5.00842129,2296.4,2294.9,0.00394495]
[1773668392938,5.00842129,2296.4,2294.5,3.55813934]
[1773668393142,5.00842129,2296.4,2294.3,5.42510149]
[1773668393143,5.00842129,2296.4,2294.6,3.55813934]
[1773668393847,5.00842129,2296.4,2294.6,3.56206498]
[1773668394646,5.00842129,2296.4,2294.7,3.55813934]
[1773668394948,5.00842129,2296.4,2294.6,3.56206498]
[1773668395347,5.00842129,2296.4,2294.7,3.55813934]
[1773668395540,4.93466515,2296.2,2294.7,3.55813934]
[1773668395940,7.624,2296.9,2294.6,5.21113713]
[1773668395941,6.80023402,2298.5,2295.7,2.47718032]
[1773668396147,17.9031304,2299.9,2295.7,2.47718032]
[1773668396148,4.82730555,2299.7,2298.9,0.21746]
[1773668396341,34.04730727,2299.7,2299.3,3.54524479]
[1773668396546,34.04730727,2299.7,2299.4,5.68665021]
[1773668396746,34.04730727,2299.7,2299.1,5.34138904]
[1773668396747,34.04730727,2299.7,2299.5,5.68665021]
[1773668397046,34.05111733,2299.7,2299.6,5.68665021]
[1773668397246,34.05111733,2299.7,2299.6,0.5648237]
[1773668397247,29.22381178,2299.7,2299.6,0.5648237]
[1773668397446,0.00381006,2299.7,2299.0,4.55225304]
[1773668397642,34.05111733,2299.7,2298.8,5.34138904]
[1773668397846,34.05111733,2299.7,2298.7,5.34138904]
[1773668398044,34.05111733,2299.7,2298.6,9.89364208]
[1773668398252,8.87899033,2299.3,2298.6,4.55225304]
[1773668398446,34.05111733,2299.7,2298.6,4.55683522]
[1773668398649,29.22381178,2299.7,2298.8,4.55225304]
[1773668399247,4.82730555,2299.6,2298.6,0.00458218]
[1773668399651,4.82730555,2299.3,2297.7,5.34138904]
[1773668399850,4.82730555,2299.3,2297.5,4.55225304]
[1773668400060,4.82730555,2299.1,2297.5,4.55225304]
[1773668400261,4.82730555,2298.9,2297.5,4.55225304]
[1773668400456,4.82730555,2298.7,2297.5,4.55225304]
[1773668400656,4.82730555,2298.7,2297.5,4.55634276]
[1773668401055,29.22000172,2298.6,2297.5,4.55634276]
[1773668401261,4.82730555,2298.5,2297.5,4.55634276]
[1773668401451,5.88814364,2301.7,2300.6,8.69193]
[1773668401650,5.88814364,2303.8,2301.2,8.90688]
[1773668401953,5.88814364,2303.8,2300.6,8.69193]
[1773668401954,5.88814364,2303.2,2300.6,8.90922]
[1773668402257,5.91419354,2303.0,2300.8,0.21727]
[1773668402458,5.91419354,2302.8,2300.8,0.00329192]
[1773668402661,14.81517354,2302.8,2300.8,0.00329192]
[1773668402955,5.91419354,2302.3,2300.8,0.00329192]
[1773668403153,5.86267781,2302.1,2300.8,0.00329192]
[1773668403354,5.86267781,2301.9,2300.8,0.00329192]
[1773668403955,5.86267781,2301.7,2300.8,0.00329192]
[1773668404157,6.28420135,2301.5,2300.8,0.00329192]
[1773668404755,6.28420135,2301.5,2300.1,0.21734]
[1773668405258,6.25590155,2301.3,2300.1,0.21734]
[1773668405655,6.25590155,2301.1,2300.1,0.22109396]
[1773668405857,6.25590155,2300.9,2299.4,0.21741]
[1773668406364,6.2771844,2301.1,2299.8,3.88602323]
[1773668406559,6.2771844,2301.1,2299.8,12.58112323]
[1773668406759,6.2771844,2301.0,2299.8,12.58112323]
[1773668406960,6.2771844,2300.5,2299.8,0.00324211]
[1773668407160,6.2771844,2300.5,2299.1,12.58349323]
[1773668407367,6.26894047,2300.3,2299.1,3.88609323]
[1773668407562,6.26894047,2300.2,2299.1,3.88609323]
[1773668408061,6.26894047,2300.2,2299.1,3.89043027]
[1773668408266,0.00438388,2301.3,2299.1,3.89043027]
[1773668408267,6.27296074,2300.6,2299.6,3.84022238]
[1773668408768,6.27296074,2300.6,2299.6,12.53588238]
[1773668409062,6.27296074,2300.9,2299.8,0.21737]
[1773668410666,6.2257733,2300.4,2299.4,3.66285631]
[1773668410857,6.2257733,2300.4,2299.2,8.91448]
[1773668411260,6.22494239,2300.7,2299.5,3.63725238]
[1773668411465,6.22494239,2300.7,2299.6,0.21739]
[1773668411865,7.83633835,2300.4,2299.6,0.21739]
[1773668412166,7.83633835,2300.4,2299.1,0.00433704]
[1773668412462,7.82376179,2300.2,2299.1,0.00433704]
[1773668412666,8.04110179,2300.2,2297.8,0.21756]
[1773668412964,7.82376179,2299.2,2298.0,0.21754]
[1773668413161,8.13126366,2303.0,2297.4,7.185]
[1773668413381,8.13126366,2303.7,2302.0,8.68679]
[1773668413660,8.13126366,2303.6,2302.0,0.00519123]
[1773668413861,8.13126366,2303.6,2302.2,8.90303]
[1773668414062,8.13126366,2303.6,2302.2,0.21714]
[1773668414363,8.17217888,2303.4,2302.0,0.00519123]
[1773668414964,8.17217888,2303.4,2302.0,0.46006822]
[1773668415175,8.09712731,2305.5,2303.4,0.45487699]
[1773668415663,8.09712731,2305.4,2303.0,0.45487699]
[1773668415868,8.09712731,2305.4,2302.4,7.212]
[1773668415869,8.09712731,2305.3,2302.7,0.45487699]
[1773668416064,8.12674506,2304.8,2302.7,0.45487699]
[1773668416266,8.12674506,2304.6,2302.1,0.36710737]
[1773668416460,8.12674506,2304.4,2302.2,0.62616566]
[1773668416665,8.12674506,2304.4,2302.0,0.00519123]
[1773668416866,8.12674506,2304.2,2302.1,0.62644415]
[1773668417058,8.12329438,2304.0,2302.2,0.62644415]
[1773668417258,8.12329438,2303.8,2302.0,0.3722986]
[1773668417472,8.12329438,2303.6,2302.1,0.6258595]
[1773668417765,8.12329438,2303.4,2302.0,0.00519123]
[1773668418169,0.00383341,2303.6,2302.0,0.00519123]
[1773668418170,8.13545709,2303.2,2302.0,0.00519123]
[1773668418470,8.13545709,2303.2,2301.1,0.29295454]
[1773668418669,8.13545709,2303.2,2300.8,0.29295454]
[1773668418867,8.13545709,2303.2,2301.0,0.29295454]
[1773668419066,8.13545709,2303.0,2301.2,0.32111805]
[1773668419370,8.10712338,2302.8,2301.2,0.00323516]
[1773668419565,8.10712338,2302.6,2301.2,0.00323516]
[1773668419761,8.10712338,2302.4,2301.2,0.00323516]
[1773668419968,8.10712338,2302.2,2301.2,0.00323516]
[1773668420163,7.61083341,2303.6,2301.2,0.00323516]
[1773668420164,8.11823486,2302.0,2301.2,0.00323516]
[1773668420467,8.11823486,2301.8,2301.2,0.00323516]
[1773668420669,8.11823486,2301.6,2300.5,0.2173]
[1773668420870,8.11823486,2301.6,2300.6,0.62743237]
[1773668421066,8.11823486,2301.6,2300.7,0.62743237]
[1773668421268,8.11823486,2301.6,2300.8,0.62743237]
[1773668421470,8.11823486,2301.6,2300.5,8.90941]
[1773668421672,6.595,2301.5,2300.6,0.62812506]
[1773668421973,14.70459688,2301.5,2300.7,0.62812506]
[1773668422168,8.21278479,2301.4,2300.8,0.62948805]
[1773668422469,8.21278479,2301.4,2300.5,0.00507952]
[1773668422665,8.21278479,2301.4,2299.8,0.21737]
[1773668422869,8.21278479,2304.2,2302.9,8.68337]
[1773668423068,8.21278479,2304.6,2303.1,0.21706]
[1773668423366,8.21278479,2304.5,2303.2,0.64569383]
[1773668423566,8.21278479,2304.5,2302.5,0.27138638]
[1773668423772,8.21278479,2304.5,2302.6,6.2228895]
[1773668423967,8.21798843,2304.5,2302.7,0.64570302]
[1773668424161,8.21798843,2304.5,2302.8,0.64570302]
[1773668424366,8.21798843,2304.5,2302.9,0.64570302]
[1773668424567,8.21278479,2304.3,2303.0,0.64570302]
[1773668424765,8.21278479,2304.3,2302.6,0.00341793]
[1773668424965,8.21278479,2304.3,2302.7,0.65054216]
[1773668425163,8.21278479,2304.3,2302.8,0.65054216]
[1773668425366,8.21278479,2304.1,2302.9,0.65054216]
[1773668425563,6.634,2304.2,2302.6,0.00341793]
[1773668425564,8.21278479,2303.9,2303.0,0.65054216]
[1773668425768,8.21278479,2303.7,2302.6,0.00341793]
[1773668426074,8.21278479,2303.5,2302.6,0.00341793]
[1773668426275,8.21278479,2303.3,2302.6,0.00341793]
[1773668426569,14.85878479,2303.2,2302.6,0.00341793]
[1773668426778,8.21278479,2303.1,2302.6,0.00341793]
[1773668427070,8.21278479,2303.1,2301.8,0.34205597]
[1773668427275,8.21278479,2303.1,2301.9,5.61913912]
[1773668427475,8.21278479,2303.1,2302.0,5.61913912]
[1773668427666,8.21278479,2303.1,2302.1,5.61913912]
[1773668427865,8.21278479,2303.1,2301.5,0.56358392]
[1773668428069,6.662,2303.0,2301.6,5.61513218]
[1773668428271,14.87678479,2302.9,2301.7,5.61513218]
[1773668428571,8.21278479,2303.9,2302.5,0.27102213]
[1773668428772,8.21278479,2303.7,2302.1,0.27102213]
[1773668428970,8.21278479,2303.5,2302.2,5.6136044]
[1773668429170,6.672,2303.4,2302.3,5.6136044]
[1773668429371,8.21278479,2303.3,2302.4,5.6136044]
[1773668429571,8.21278479,2303.3,2302.5,5.6136044]
[1773668429772,8.21278479,2304.4,2302.6,5.6136044]
[1773668429974,8.21278479,2304.2,2302.7,5.6136044]
[1773668430277,8.21278479,2304.2,2302.8,5.6136044]
[1773668430472,8.21278479,2304.2,2302.9,5.6136044]
[1773668430669,8.21278479,2304.0,2302.4,0.21712]
[1773668430971,8.21278479,2304.0,2302.5,5.61129885]
[1773668431181,6.693,2303.9,2302.6,5.61129885]
[1773668431471,8.21278479,2303.8,2302.7,5.61129885]
[1773668431676,8.21278479,2303.6,2302.4,0.21712]
[1773668431875,8.21278479,2303.4,2302.5,5.62904671]
[1773668432075,8.21278479,2303.2,2302.6,5.62904671]
[1773668432272,14.91278479,2303.1,2301.9,5.93286766]
[1773668432468,6.701,2303.0,2302.0,5.62898755]
[1773668432668,8.21278479,2305.2,2303.6,0.59147862]
[1773668432874,8.21278479,2305.6,2304.9,0.21689]
[1773668433174,8.21278479,2305.6,2304.6,0.58627498]
[1773668433374,8.21278479,2305.6,2304.2,0.58605633]
[1773668433574,8.21278479,2305.5,2304.3,5.60582803]
[1773668433770,8.2183565,2305.5,2304.4,6.19188436]
[1773668433972,0.00557171,2305.5,2304.6,0.55789065]
[1773668434276,8.21278479,2305.9,2304.7,5.60582803]
[1773668434474,8.21278479,2305.9,2304.8,5.60582803]
[1773668434676,8.21278479,2305.9,2304.6,0.55260919]
[1773668434871,8.21278479,2305.9,2304.7,5.59524395]
[1773668435078,8.21667981,2305.9,2304.8,5.59524395]
[1773668435377,8.21667981,2305.9,2304.9,5.58901139]
[1773668435679,8.21667981,2305.9,2304.7,0.2169]
[1773668435973,8.21278479,2306.7,2305.0,4.96006869]
[1773668436273,8.21278479,2306.5,2304.8,4.96006869]
[1773668436474,8.21278479,2306.3,2304.6,9.15974406]
[1773668436678,8.21278479,2306.1,2304.7,5.58544017]
[1773668436977,8.21278479,2305.9,2304.8,5.85144423]
[1773668437180,8.21278479,2305.9,2304.8,0.26600406]
[1773668437477,8.21278479,2305.9,2304.9,5.58338125]
[1773668437780,8.21278479,2305.9,2305.0,6.26043364]
[1773668437973,8.21278479,2305.8,2305.1,0.67773452]
[1773668438178,8.21278479,2305.8,2305.2,0.61546791]
[1773668438375,8.21278479,2305.8,2304.3,8.51931697]
[1773668438676,8.21278479,2305.8,2304.2,0.54374674]
[1773668438877,8.21278479,2305.8,2303.9,8.67962]
[1773668438878,8.21278479,2305.8,2304.0,8.89613]
[1773668439079,8.21278479,2305.8,2304.2,0.21696]
[1773668439374,8.21278479,2305.6,2304.3,5.59018878]
[1773668439574,8.21278479,2305.6,2304.2,0.00392936]
[1773668440777,8.21278479,2305.4,2304.2,0.00392936]
[1773668441074,8.21278479,2305.2,2304.2,0.00392936]
[1773668441376,8.21278479,2305.0,2303.5,0.21702]
[1773668441675,8.21278479,2304.8,2303.5,0.21702]
[1773668441874,8.21278479,2304.6,2303.5,0.21702]
[1773668442073,8.21278479,2304.4,2303.5,0.21702]
[1773668442276,8.21278479,2304.2,2303.5,0.22049447]
[1773668442470,8.21278479,2304.2,2302.8,8.68374]
[1773668442677,8.21278479,2304.2,2302.9,5.61817522]
[1773668442878,8.21278479,2304.2,2302.8,0.21708]
[1773668443078,8.21278479,2304.0,2302.8,0.21708]
[1773668443576,8.21278479,2304.0,2302.9,5.64054732]
[1773668443776,8.21278479,2304.0,2303.0,5.64054732]
[1773668443976,8.21278479,2304.0,2302.8,0.22155331]
[1773668444177,8.21278479,2304.0,2302.9,5.64088185]
[1773668444482,8.21278479,2304.0,2302.8,0.22155331]
[1773668444876,8.21278479,2304.0,2302.8,0.00447331]
[1773668445682,8.21278479,2304.0,2301.5,27.81531074]
[1773668445683,8.21278479,2304.0,2301.5,0.2172]
[1773668445877,8.21278479,2303.8,2301.5,0.2172]
[1773668446079,0.21699,2303.9,2301.5,0.2172]
[1773668446080,8.21278479,2303.4,2301.5,0.2172]
[1773668446284,8.21278479,2303.2,2301.5,0.2172]
[1773668446582,8.21278479,2303.2,2301.5,0.2203251]
[1773668447381,8.21278479,2303.0,2301.5,0.2203251]
[1773668448981,8.21278479,2302.8,2301.5,0.2203251]
[1773668449183,8.21278479,2302.6,2301.5,0.0031251]
[1773668449382,8.21278479,2302.4,2301.5,0.0031251]
[1773668449588,8.21278479,2302.4,2300.9,0.21727]
[1773668450286,8.21278479,2302.4,2300.3,0.21732]
[1773668450683,8.21278479,2302.2,2300.3,0.22152125]
[1773668450981,8.21278479,2302.0,2300.3,0.22152125]
[1773668451181,8.21278479,2301.8,2300.3,0.00420125]
[1773668451380,8.90214,2302.5,2299.7,0.21738]
[1773668451381,8.21278479,2301.6,2299.7,0.21738]
[1773668451581,8.21278479,2301.4,2299.7,0.21738]
[1773668451777,8.21278479,2301.2,2299.7,0.21738]
[1773668451977,8.21278479,2301.0,2299.0,0.21744]
[1773668452177,8.21278479,2300.8,2299.0,0.21744]
[1773668452378,8.21278479,2300.8,2298.4,0.2175]
[1773668452379,7.65228052,2300.7,2298.4,0.2175]
[1773668452582,7.65228052,2300.5,2298.4,8.91769]
[1773668452785,7.65228052,2300.5,2298.4,0.2175]
[1773668452988,7.65228052,2300.3,2298.4,0.2175]
[1773668453176,7.65228052,2300.3,2297.8,0.21756]
[1773668453484,7.65228052,2300.3,2297.8,8.92497416]
[1773668453780,7.65228052,2300.3,2298.2,0.21752]
[1773668453980,7.7149738,2300.1,2297.8,0.00477416]
[1773668454180,7.7149738,2299.9,2297.8,0.00477416]
[1773668454384,7.7149738,2299.7,2297.8,0.00477416]
[1773668454585,7.7149738,2299.5,2297.8,0.00477416]
[1773668454986,7.7149738,2299.5,2297.9,0.21755]
[1773668455181,7.7149738,2299.3,2298.1,0.21753]
[1773668455489,6.783,2299.2,2298.4,0.2175]
[1773668455688,7.7149738,2299.1,2298.4,0.2175]
[1773668455884,7.71889285,2299.1,2298.4,0.2175]
[1773668456091,6.783,2299.2,2298.4,8.9178]
[1773668456293,5.83796077,2299.2,2298.6,0.21749]
[1773668456489,7.7149738,2299.7,2299.0,8.91554]
[1773668456690,7.7149738,2299.7,2299.0,0.21744]
[1773668456883,6.785,2299.8,2299.4,0.21741]
[1773668457087,6.785,2300.6,2299.8,0.21736]
[1773668457289,6.785,2300.5,2299.8,0.22160085]
[1773668457486,14.4999738,2300.5,2299.8,0.22160085]
[1773668457690,7.7149738,2300.4,2299.8,0.22160085]
[1773668457992,14.5009738,2300.4,2299.8,0.22160085]
[1773668458388,14.5009738,2300.4,2299.8,0.00424085]
[1773668458689,0.00509381,2300.6,2299.4,11.50320893]
[1773668458890,0.00509381,2300.6,2299.8,8.91245]
[1773668459195,0.00085296,2300.6,2299.8,8.91245]
[1773668459486,0.00085296,2300.6,2299.8,0.21737]
[1773668459887,0.00085296,2300.6,2299.8,11.36704185]
[1773668460090,7.82315,2302.2,2300.2,11.33568455]
[1773668460091,14.5009738,2301.4,2300.2,11.33568455]
[1773668460285,14.5009738,2301.5,2300.7,0.21728]
[1773668460491,7.82308,2303.0,2300.7,0.21728]
[1773668460492,7.7149738,2301.3,2300.7,0.21728]
[1773668460690,7.606,2302.8,2300.7,0.21728]
[1773668460893,7.7149738,2301.7,2300.7,0.21728]
[1773668461090,7.7149738,2301.5,2300.7,0.22277569]
[1773668461691,6.787,2301.4,2300.7,0.22277569]
[1773668461900,6.787,2301.4,2299.7,21.25131]
[1773668461901,7.7149738,2301.3,2300.1,0.21734]
[1773668462695,0.00371377,2301.7,2300.1,0.21734]
[1773668462696,7.7149738,2301.1,2300.1,0.21734]
[1773668462996,7.7149738,2300.9,2300.1,0.22187599]
[1773668463297,0.00371377,2301.7,2300.1,0.22187599]
[1773668463298,7.7149738,2300.7,2300.1,0.22187599]
[1773668463593,7.7149738,2300.6,2300.1,0.22187599]
[1773668463794,7.7149738,2300.5,2300.1,0.22187599]
[1773668463990,7.7149738,2301.6,2300.1,8.91571599]
[1773668464187,7.7149738,2301.5,2300.7,0.21728]
[1773668465290,6.786,2301.4,2300.7,0.21728]
[1773668465491,6.786,2301.4,2300.7,8.90886]
[1773668465692,14.5009738,2301.5,2300.7,8.90886]
[1773668465895,14.5009738,2301.5,2300.7,0.21728]
[1773668466090,7.7149738,2301.5,2300.7,0.21728]
[1773668466291,6.785,2301.4,2300.7,0.21728]
[1773668466489,14.4999738,2301.5,2300.7,0.21728]
[1773668467484,7.7149738,2301.5,2300.7,0.21728]
[1773668467689,6.784,2301.4,2300.7,0.21728]
[1773668468088,14.4979738,2301.6,2301.1,0.21724]
[1773668468287,14.4979738,2301.6,2300.8,8.69118]
[1773668468288,7.7149738,2301.5,2300.3,8.69321]
[1773668468490,7.7149738,2301.5,2300.8,0.21728]
[1773668469797,7.7149738,2301.5,2300.1,8.69837599]
[1773668470194,7.7149738,2301.5,2300.2,0.21733]
[1773668471299,7.7149738,2301.3,2300.2,0.21733]
[1773668471695,7.7149738,2301.3,2300.4,0.21732]
[1773668471991,7.7149738,2301.1,2300.4,0.21732]
[1773668472193,7.7149738,2300.9,2300.4,0.21732]
[1773668472398,7.7149738,2300.7,2300.4,0.21732]
[1773668472692,7.7149738,2300.7,2300.1,0.00453599]
[1773668472693,14.4939738,2300.7,2300.1,0.00453599]
[1773668473099,6.779,2300.7,2300.4,0.21732]
[1773668473395,14.4929738,2301.0,2300.4,0.21732]
[1773668473697,0.00371377,2301.7,2300.4,0.21732]
[1773668473698,14.4929738,2300.9,2300.4,0.21732]
[1773668473898,6.777,2300.8,2300.4,0.21732]
[1773668474200,6.777,2300.8,2300.1,8.69819599]
[1773668474201,7.7149738,2300.7,2300.1,0.00453599]
[1773668474493,7.7149738,2301.0,2300.9,0.21727]
[1773668474695,6.46316181,2301.0,2300.9,0.21727]
[1773668474991,6.776,2301.1,2300.9,0.21727]
[1773668475197,6.776,2301.1,2300.5,8.69245]
[1773668475900,6.776,2301.0,2300.5,8.69245]
[1773668476400,6.775,2301.2,2300.9,0.21727]
[1773668476596,7.7149738,2301.1,2300.1,8.69836599]
[1773668476800,7.7149738,2301.1,2300.4,0.21732]
[1773668478001,7.7149738,2301.1,2300.9,0.21727]
[1773668478198,14.4869738,2301.0,2300.9,0.21727]
[1773668478394,7.7149738,2300.9,2300.1,8.69837599]
[1773668478601,7.7149738,2300.9,2300.1,0.00453599]
[1773668479303,7.7149738,2300.9,2299.5,22.60942]
[1773668479894,7.7149738,2300.9,2299.9,0.21736]
[1773668480402,7.7149738,2300.9,2299.9,0.22145427]
[1773668480798,0.00371377,2301.7,2300.6,3.74320791]
[1773668481100,7.7149738,2301.4,2301.0,0.21725]
[1773668481303,6.769,2301.5,2301.0,0.21725]
[1773668481504,7.7149738,2301.4,2301.0,0.21725]
[1773668481696,7.7149738,2301.4,2300.3,3.73956797]
[1773668481902,7.7149738,2301.4,2300.4,8.91005]
[1773668482300,7.7149738,2301.4,2300.4,0.21732]
[1773668482505,7.7149738,2301.4,2300.0,0.21735]
[1773668484101,7.52459438,2301.2,2300.0,0.21735]
[1773668484300,7.52459438,2301.0,2300.0,0.21735]
[1773668484497,7.52459438,2300.8,2300.5,0.2173]
[1773668484705,14.29259438,2300.7,2299.9,0.00409427]
[1773668484901,14.29159438,2300.6,2299.9,0.00409427]
[1773668485102,6.767,2300.5,2299.9,0.00409427]
[1773668485610,14.29159438,2300.5,2300.0,0.21735]
[1773668486505,6.767,2300.5,2300.0,0.21735]
[1773668486806,7.52459438,2300.8,2300.0,8.91165]
[1773668487003,7.52459438,2300.8,2300.5,0.21731]
[1773668487207,14.28959438,2301.0,2300.5,0.21731]
[1773668487407,14.28959438,2300.9,2300.5,0.21731]
[1773668487707,14.28859438,2300.9,2300.5,0.21731]
[1773668488504,7.52459438,2300.8,2300.0,8.6943]
[1773668488705,7.52459438,2300.8,2300.0,0.21735]
[1773668489008,7.52459438,2300.8,2299.3,8.69665]
[1773668489310,7.52459438,2300.8,2300.0,0.21735]
[1773668489607,7.52459438,2300.6,2300.0,0.21735]
[1773668489808,7.52459438,2300.4,2300.0,0.21735]
[1773668490009,14.28559438,2300.3,2300.0,0.21735]
[1773668490209,14.28559438,2300.3,2299.5,8.6961]
[1773668490410,7.52459438,2301.2,2300.0,0.21735]
[1773668490612,7.52459438,2300.5,2300.0,0.21735]
[1773668490807,14.28459438,2300.5,2300.0,0.21735]
[1773668491004,7.52459438,2300.5,2300.0,0.21735]
[1773668491809,7.52459438,2300.6,2300.5,0.21731]
[1773668492006,7.52459438,2300.6,2299.9,0.00409427]
[1773668492209,7.52459438,2300.6,2300.0,0.21735]
[1773668492616,7.52459438,2300.4,2300.0,0.21735]
[1773668492817,7.52459438,2300.3,2300.0,0.21735]
[1773668493018,7.52459438,2300.3,2299.9,0.00409427]
[1773668493312,7.52459438,2300.3,2299.3,3.83449895]
[1773668494310,7.52459438,2300.3,2299.5,8.69919861]
[1773668494514,7.52459438,2300.3,2300.0,0.21735]
[1773668494820,7.52459438,2300.3,2299.5,8.69919861]
[1773668495018,7.52459438,2300.3,2299.5,0.22049861]
[1773668496323,7.52459438,2300.1,2299.5,0.22049861]
[1773668496518,7.52459438,2299.9,2299.5,0.22049861]
[1773668496718,7.52459438,2299.7,2298.8,8.69888]
[1773668497021,7.63137339,2303.3,2302.9,8.90046]
[1773668497317,7.52459438,2304.2,2303.0,6.37780013]
[1773668497520,7.52459438,2304.1,2303.7,3.53977517]
[1773668497718,7.52459438,2304.1,2303.8,6.37780013]
[1773668497920,7.52459438,2304.1,2303.4,5.30966276]
[1773668497921,7.52459438,2303.9,2303.4,5.30966276]
[1773668498218,7.52459438,2303.9,2302.9,0.21707]
[1773668498523,15.62402597,2303.8,2302.9,0.21707]
[1773668498822,7.52459438,2303.8,2302.9,0.22049819]
[1773668499320,8.09943159,2303.7,2302.9,0.22049819]
[1773668499521,8.09943159,2303.7,2302.9,7.47749819]
[1773668501122,7.52459438,2303.6,2302.9,0.22049819]
[1773668501322,7.52459438,2303.6,2302.3,7.263]
[1773668501323,7.52459438,2303.5,2302.3,7.263]
[1773668501533,7.52459438,2303.4,2302.4,7.263]
[1773668502032,7.52459438,2303.2,2302.2,13.8178967]
[1773668502227,7.52459438,2303.2,2302.2,13.82095002]
[1773668502520,0.21645194,2304.9,2302.2,13.82095002]
[1773668502521,8.99520843,2304.8,2303.3,0.93309087]
[1773668502723,8.99682529,2306.3,2305.8,8.67236]
[1773668502922,5.50882529,2306.3,2305.8,8.67236]
[1773668503117,5.50882529,2306.3,2305.8,0.2168]
[1773668503322,5.50882529,2306.3,2305.1,0.21687]
[1773668503518,5.51273848,2306.3,2305.1,0.00557279]
[1773668505826,5.51273848,2306.3,2305.2,0.21686]
[1773668506627,5.51273848,2306.3,2305.2,8.89151]
[1773668507028,5.51273848,2306.3,2305.2,0.21686]
[1773668507233,5.51273848,2306.3,2305.2,14.0115527]
[1773668507536,7.52459438,2306.8,2305.7,5.1203227]
[1773668507832,8.66225,2308.6,2305.2,8.67437]
[1773668507833,7.52459438,2309.2,2307.1,8.88419]
[1773668508129,7.52459438,2309.0,2306.9,8.88478]
[1773668508329,7.52459438,2308.8,2307.1,8.66752]
[1773668508529,7.52459438,2308.6,2307.3,4.90403931]
[1773668508733,7.52459438,2308.5,2307.4,5.12069931]
[1773668509027,7.52459438,2308.5,2307.4,13.78710931]
[1773668509237,0.00435829,2309.0,2308.0,0.2166]
[1773668509238,7.52459438,2308.9,2308.0,0.2166]
[1773668509430,7.52459438,2308.9,2307.9,13.56931369]
[1773668509829,7.52459438,2308.9,2308.1,0.21659]
[1773668510334,14.33059438,2308.9,2307.5,0.21665]
[1773668510633,0.00435829,2309.0,2307.5,0.21665]
[1773668510634,14.33059438,2308.8,2307.5,0.21665]
[1773668510835,7.52459438,2308.6,2307.5,8.88258]
[1773668511132,7.52459438,2308.6,2307.2,8.66689]
[1773668511133,7.52459438,2308.5,2306.9,0.00553227]
[1773668511734,7.62545449,2308.3,2306.9,0.00553227]
[1773668511929,7.62545449,2308.1,2306.9,0.00553227]
[1773668512233,8.1085671,2307.9,2307.0,0.21669]
[1773668512431,9.26198678,2307.7,2307.0,0.21669]
[1773668512626,0.00435829,2309.0,2305.6,3.16311077]
[1773668512627,9.26198678,2307.5,2305.6,3.16311077]
[1773668512827,9.26198678,2307.3,2304.8,12.05611077]
[1773668513032,9.47867678,2307.1,2304.3,8.89489]
[1773668513234,9.26198678,2306.9,2304.9,8.89274]
[1773668513433,9.26198678,2306.9,2304.4,2.87558636]
[1773668513739,9.26198678,2305.9,2303.7,0.217]
[1773668514037,9.10363009,2305.7,2303.7,0.217]
[1773668514233,9.10363009,2305.3,2302.9,8.90009]
[1773668514432,9.10363009,2305.1,2302.9,8.9004]
[1773668514628,6.824,2305.0,2302.9,8.90044]
[1773668514832,9.10363009,2304.9,2302.9,8.90420772]
[1773668515037,9.10363009,2304.7,2303.1,8.68252]
[1773668515237,6.827,2304.6,2303.1,8.89958]
[1773668515435,9.10363009,2304.5,2303.1,8.89958]
[1773668515735,9.10363009,2304.3,2303.1,0.21706]
[1773668515938,9.10363009,2304.1,2302.9,0.00376772]
[1773668516239,2.46976292,2304.8,2302.9,0.00376772]
[1773668516240,9.10363009,2303.9,2302.9,0.00376772]
[1773668516534,7.593,2304.7,2302.9,0.00376772]
[1773668516535,9.10363009,2303.7,2302.9,0.00376772]
[1773668516735,9.10363009,2303.5,2302.9,0.00376772]
[1773668516939,9.10363009,2303.3,2302.3,0.21713]
[1773668517137,9.10363009,2303.1,2302.3,0.21713]
[1773668517439,9.10363009,2302.9,2301.5,8.9056]
[1773668517836,9.10363009,2302.9,2302.1,8.68622]
[1773668518134,9.10363009,2302.8,2302.1,8.69185847]
[1773668518334,6.839,2302.7,2302.1,8.69185847]
[1773668518638,6.839,2302.7,2302.1,0.22278847]
[1773668519037,6.841,2302.6,2302.1,0.22278847]
[1773668519233,9.10363009,2302.5,2302.1,0.22278847]
[1773668519634,0.00361085,2302.9,2302.1,8.90884847]
[1773668519635,15.95124094,2302.9,2302.1,8.90884847]
[1773668519837,9.10363009,2302.8,2302.1,0.22278847]
[1773668520037,9.10363009,2302.7,2302.1,0.22278847]
[1773668520239,0.00361085,2302.9,2302.1,0.22278847]
[1773668520439,6.846,2302.8,2302.1,0.22278847]
[1773668520734,15.95063009,2302.8,2302.1,0.22278847]
[1773668520939,9.10363009,2302.7,2301.4,8.68902]
[1773668521235,9.10363009,2302.5,2301.4,8.68902]
[1773668521429,9.10363009,2302.5,2302.0,0.21716]
[1773668521633,15.95363009,2302.6,2302.0,0.21716]
[1773668521836,9.10363009,2302.5,2301.3,0.21723]
[1773668522237,9.10363009,2302.3,2301.3,0.21723]
[1773668522533,9.10363009,2302.1,2301.0,2.9217157]
[1773668522836,9.10363009,2301.9,2301.0,8.69235305]
[1773668523031,15.95563009,2301.8,2301.0,0.21921305]
[1773668523230,9.10363009,2301.6,2299.5,11.63900627]
[1773668523429,8.90673925,2302.9,2300.1,8.69365]
[1773668523430,9.10363009,2301.4,2300.1,8.69365]
[1773668523635,9.10363009,2301.2,2300.3,8.69304]
[1773668523939,9.10363009,2301.0,2300.2,8.91088]
[1773668524134,7.597,2302.3,2300.2,0.21733]
[1773668524135,9.10363009,2300.8,2300.2,0.21733]
[1773668524339,9.10363009,2300.9,2300.6,8.6919]
[1773668524543,9.10707263,2300.9,2300.5,0.21731]
[1773668525036,9.10707263,2300.9,2299.9,8.69459]
[1773668525037,9.10363009,2300.8,2299.9,8.69459]
[1773668525232,6.858,2300.7,2299.9,8.91195]
[1773668525431,9.10363009,2300.6,2299.9,8.91195]
[1773668525634,9.10363009,2300.5,2299.9,0.21736]
[1773668526035,9.10363009,2300.3,2299.9,0.21736]
[1773668526235,9.10363009,2300.3,2299.6,8.69579]
[1773668526236,6.861,2300.2,2299.5,13.9139]
[1773668526435,9.10363009,2300.1,2299.5,8.6961]
[1773668526737,9.10363009,2300.1,2299.1,0.21744]
[1773668526932,6.862,2300.0,2298.9,8.69838]
[1773668527138,9.10363009,2299.9,2298.7,8.91659]
[1773668527334,9.10363009,2299.9,2299.2,8.69723]
[1773668527539,9.10363009,2299.8,2299.4,8.69639]
[1773668527837,9.10363009,2299.8,2299.3,8.69677]
[1773668528037,9.10363009,2300.1,2299.7,8.69518]